Cogmind - Beta 12 @@@ ROGUE MODE // 2023.06.06 @ 04:33:02 Player: snowphil Result: Destroyed by G-47 Trooper with Particle Gun Performance ------------- Evolutions (2) 1000 Regions Visited (5) 1000 Robots Destroyed (43) 215 Value Destroyed (1094) 1094 Prototype IDs (23) 460 Alien Tech Used (0) 0 Bonus (300) 300 TOTAL SCORE: 4069 Bonus ------- Aligned with FarCom 300 Cogmind --------- Core Integrity 0/550 Matter 265/300 Energy 100/100 System Corruption 2% Temperature Cool (18) Movement Core (100) Ox1 Location -8/Materials Parts ------- > --- POWER (1) -------- (None) > --- PROPULSION (4) --- (None) > --- UTILITY (4) ------ Lightpack 2.0 > --- WEAPON (2) ------- (None) > --- INVENTORY (40) --- Improved Aluminum Leg Improved Heat Sink System Shield Heavy EM Pulse Gun Beam Cannon Ion Cannon Ion Cannon Assault Cannon Peak State ------------ > --- POWER ------------ Light Nuclear Core > --- PROPULSION ------- Aluminum Leg Improved Hover Unit Improved Hover Unit Improved Hover Unit > --- UTILITY ---------- Lightpack 2.0 Improved Terrain Scanner > --- WEAPON ----------- Beam Cannon Grenade Launcher > --- INVENTORY -------- Light Ion Engine Aluminum Leg Improved Heat Sink Grenade Launcher Rocket Launcher Rocket Launcher Mining Laser [Rating: 46] Favorites ----------- Power Light Nuclear Core Engine Ion Engine Power Core Light Nuclear Core Propulsion Aluminum Leg Leg Aluminum Leg Hover Unit Improved Hover Unit Utility Improved Heat Sink Device Improved Heat Sink Storage Small Storage Unit Weapon Grenade Launcher Energy Gun Small Laser Energy Cannon Beam Cannon Ballistic Gun Assault Rifle Launcher Grenade Launcher Special Weapon Mining Laser Build | -11 -10 -10 -10 -9 -8 ------- Run | Jun Mat Min Exi Min Mat Slots Evolved 4 | . . . . . 4 Power . | . . . . . . Propulsion 2 | . . . . . 2 Utility 2 | . . . . . 2 Weapon . | . . . . . . Parts Attached 43 | . 22 . 1 5 15 Power 4 | . 2 . . . 2 Engine 2 | . 1 . . . 1 Core 2 | . 1 . . . 1 Reactor . | . . . . . . Propulsion 17 | . 11 . . 1 5 Treads . | . . . . . . Leg 9 | . 6 . . 1 2 Wheel . | . . . . . . Hover 8 | . 5 . . . 3 Flight . | . . . . . . Utility 7 | . 1 . 1 2 3 Device 5 | . 1 . . 2 2 Storage 2 | . . . 1 . 1 Processor . | . . . . . . Hackware . | . . . . . . Protection . | . . . . . . Artifact . | . . . . . . Weapon 15 | . 8 . . 2 5 Energy Gun . | . . . . . . Energy Cannon 4 | . 2 . . 1 1 Ballistic Gun 3 | . 3 . . . . Ballistic Cannon . | . . . . . . Launcher 4 | . 1 . . . 3 Special Weapon 4 | . 2 . . 1 1 Impact Weapon . | . . . . . . Slashing Weapon . | . . . . . . Piercing Weapon . | . . . . . . Special Melee Weapon . | . . . . . . Unidentified Prototypes . | . . . . . . Parts Lost 17 | . 2 . . . 15 Power 3 | . . . . . 3 Propulsion 7 | . 1 . . . 6 Utility 1 | . . . . . 1 Weapon 6 | . 1 . . . 5 Highest Loss Streak 10 | . 1 . . . 10 To Critical Strikes . | . . . . . . Average Slot Usage (%) 93 | . 94 100 100 100 63 Engine 3 | . 8 . . . 3 Core 9 | . 5 14 14 14 3 Leg 23 | . 22 28 28 28 9 Hover 4 | . 5 . . . 17 Device 11 | . 8 14 14 14 8 Storage 13 | . 14 14 14 14 9 Energy Cannon 4 | . 5 . . 8 4 Ballistic Gun 3 | . 9 . . . . Launcher 10 | . 6 14 14 14 5 Special Weapon 6 | . 4 14 14 5 2 Naked Turns . | . . . . . . Heaviest Build 22 | 13 17 15 20 22 21 Greatest Support 21 | 20 20 20 20 20 21 Greatest Overweight (x) 4 | . . . . 1 4 Average Overweight (x) . | . . . . . . Largest Inventory Capacity 40 | 8 8 8 10 10 40 Average Capacity 13 | 8 8 8 9 10 39 Most Carried 10 | 5 8 8 10 10 10 Average Carried 8 | 5 7 8 9 9 6 Final Capacity 40 | 8 8 8 10 10 40 Final Carried 10 | 4 8 8 10 10 8 Class Distribution -------------------- 86% | Mutant 9% | Hauler-Scout 3% | Hauler-Mutant Dominant Class ---------------- Mutant | -10/Materials Mutant | -10/Mines Mutant | -10/Exiles Mutant | -9/Mines Hauler-Scout | -8/Materials Resources | -11 -10 -10 -10 -9 -8 ----------- Run | Jun Mat Min Exi Min Mat Matter Collected 904 | 200 369 10 . 140 185 Remotely . | . . . . . . Salvage Created 1029 | . 611 . . 178 240 Parts 74 | . 39 . . 17 18 Haulers Intercepted . | . . . . . . Recyclers Shooed 1 | . 1 . . . . Parts Field Recycled . | . . . . . . Retrieved Matter . | . . . . . . Parts Self-Destructed . | . . . . . . Prevented . | . . . . . . Kills | -11 -10 -10 -10 -9 -8 ------- Run | Jun Mat Min Exi Min Mat Combat Hostiles Destroyed 37 | . 14 . . 12 11 Guns 7 | . 7 . . . . Cannons 9 | . 7 . . . 2 AOE 21 | . . . . 12 9 Classes Destroyed 8 | . 6 . . . 2 Worker 3 | . 1 . . 1 1 Builder 1 | . 1 . . . . Recycler 1 | . 1 . . . . Watcher 1 | . 1 . . . . Swarmer 14 | . 3 . . 7 4 Grunt 21 | . 11 . . 5 5 Brawler 1 | . . . . . 1 Duelist 1 | . . . . . 1 Best Kill Streak 6 | . 6 . . 4 4 Combat Bots Only 4 | . 3 . . 4 4 Max Kills in Single Turn 3 | . 1 . . 3 3 Gunslinging . | . . . . . . Exploded 3 | . . . . 3 3 Melee . | . . . . . . Uniques/NPCs Destroyed . | . . . . . . Combat | -11 -10 -10 -10 -9 -8 -------- Run | Jun Mat Min Exi Min Mat Damage Taken 2418 | . 744 11 . 134 1529 Core 736 | . 147 . . 27 562 Absorbed by Shields . | . . . . . . Regen/Repaired (Parts) 94 | . 94 . . . . Core Remaining (%) 65 | 100 . . . 30 . Volleys Fired 128 | . 89 . . 12 27 Largest 2 | . 2 . . 1 2 Hottest 100 | . 100 . . 30 100 Shots Fired 182 | . 142 . . 12 28 Gun 86 | . 86 . . . . Cannon 42 | . 30 . . . 12 Launcher 23 | . . . . 12 11 Special 31 | . 26 . . . 5 Kinetic 63 | . 63 . . . . Thermal 96 | . 79 . . . 17 Explosive 23 | . . . . 12 11 Electromagnetic . | . . . . . . Robot Hit Streak 8 | . 8 . . 1 3 Robot Miss Streak 6 | . 6 . . 5 3 Penetration Max . | . . . . . . Secondary Targets . | . . . . . . Shots Hit Robots 86 | . 70 . . 3 13 Core Hits 70 | . 25 . . 18 27 Critical Kills . | . . . . . . Critical Parts Destroyed . | . . . . . . Critical Strikes . | . . . . . . Melee Attacks . | . . . . . . Impact . | . . . . . . Slashing . | . . . . . . Piercing . | . . . . . . Sneak Attacks . | . . . . . . Combat Hostiles . | . . . . . . Follow-up Attacks . | . . . . . . Damage Inflicted 2719 | . 987 . . 855 877 Guns 646 | . 646 . . . . Cannons 422 | . 317 . . . 105 Explosions 1585 | . . . . 855 730 Melee . | . . . . . . Ramming 18 | . . . . . 18 Kinetic 470 | . 470 . . . . Thermal 646 | . 517 . . . 129 Explosive 1585 | . . . . 855 730 Electromagnetic . | . . . . . . Impact . | . . . . . . Slashing . | . . . . . . Piercing . | . . . . . . Highest Corruption 2 | . . . . . 2 Average Corruption 2 | . . . . . 2 Corruption Purged . | . . . . . . Corruption Blocked . | . . . . . . Effects 4 | . . . . . 4 Message Errors 2 | . . . . . 2 Heat Flow Errors 2 | . . . . . 2 Overload Shots . | . . . . . . Overflow Damage 59 | . . . . 16 43 Projectiles . | . . . . . . Explosions 59 | . . . . 16 43 Melee . | . . . . . . Knockbacks . | . . . . . . Impact . | . . . . . . Kinetic . | . . . . . . Secondary . | . . . . . . Self-Inflicted Damage 157 | . . . . 9 148 Shots 5 | . . . . 1 4 Rammed 4 | . . . . . 4 Targets Rammed 4 | . . . . . 4 Kicked . | . . . . . . Crushed . | . . . . . . Highest Temperature 295 | . 128 . . 10 295 Average Temperature 52 | . 47 . . 10 60 Received Heat Transfer 1053 | . 375 . . 66 612 Siege Activations . | . . . . . . Robots Corrupted . | . . . . . . Combat Hostiles . | . . . . . . Parts Fried . | . . . . . . Impact Corruptions . | . . . . . . Robots Melted . | . . . . . . Combat Hostiles . | . . . . . . Parts Melted 2 | . 2 . . . . Heat Transferred 1388 | . 1116 . . . 272 Parts Sabotaged . | . . . . . . Parts Stolen . | . . . . . . Parts Stripped . | . . . . . . Power Chain Reactions . | . . . . . . Missiles Intercepted . | . . . . . . Alert | -11 -10 -10 -10 -9 -8 ------- Run | Jun Mat Min Exi Min Mat Peak Influence 512 | . 173 1 . 151 512 Initial 42 | . . 1 . . 42 Average 95 | . 81 1 . 55 272 Maximum Alert Level 2 | . . . . . 2 Low Security (%) 87 | 100 100 100 . 100 23 Level 1 10 | . . . . . 64 Level 2 1 | . . . . . 11 Level 3 . | . . . . . . Level 4 . | . . . . . . Level 5 . | . . . . . . High Security . | . . . . . . Max Security . | . . . . . . Squads Dispatched 7 | . 3 . . . 4 Investigation 2 | . 1 . . . 1 Extermination . | . . . . . . Reinforcement 5 | . 2 . . . 3 Assault . | . . . . . . Garrison . | . . . . . . Intercept . | . . . . . . Searches Triggered . | . . . . . . Construction Impeded 1 | . . . . . 1 Haulers Reinforced . | . . . . . . Active Scanning Responses . | . . . . . . Cargo Convoy Interrupts . | . . . . . . Stealth | -11 -10 -10 -10 -9 -8 --------- Run | Jun Mat Min Exi Min Mat Distress Signals 4 | . 1 . . . 3 Communications Jammed . | . . . . . . Distress Signals . | . . . . . . Times Spotted 83 | . 24 7 . 8 44 Peak Tracking Total 16 | . 5 15 . 3 16 Tactical Retreats 9 | . . 1 . . 8 Traps | -11 -10 -10 -10 -9 -8 ------- Run | Jun Mat Min Exi Min Mat Traps Triggered 3 | . 2 . . . 1 Indirectly . | . . . . . . Trap Hack Attempts . | . . . . . . Triggered . | . . . . . . Disarmed . | . . . . . . Reprogrammed . | . . . . . . Reused . | . . . . . . Traps Extracted . | . . . . . . Installed . | . . . . . . Triggered . | . . . . . . Machines | -11 -10 -10 -10 -9 -8 ---------- Run | Jun Mat Min Exi Min Mat Machines Disabled 3 | . 2 . . . 1 Max in Single Turn 1 | . 1 . . . 1 Machines Repaired . | . . . . . . Machines Sabotaged . | . . . . . . Overloaded Fab Kills . | . . . . . . Hacking | -11 -10 -10 -10 -9 -8 --------- Run | Jun Mat Min Exi Min Mat Machines Accessed 14 | . 8 . 1 . 5 Terminals 10 | . 5 . . . 5 Fabricators . | . . . . . . Repair Stations 1 | . 1 . . . . Recycling Units 2 | . 2 . . . . Scanalyzers . | . . . . . . Garrison Access . | . . . . . . Total Hacks 34 | . 20 . 1 . 13 Successful 15 | . 10 . 1 . 4 Failed 19 | . 10 . . . 9 Catastrophic 3 | . 2 . . . 1 Database Lockouts . | . . . . . . Manual 25 | . 14 . 1 . 10 Terminals 25 | . 12 . . . 13 Fabricators . | . . . . . . Repair Stations 5 | . 5 . . . . Recycling Units 3 | . 3 . . . . Scanalyzers . | . . . . . . Garrison Access . | . . . . . . Terminal Hacks 5 | . 2 . 1 . 2 Part Schematic 1 | . 1 . . . . Alert Level 2 | . 1 . . . 1 Unreport Threat 1 | . . . . . 1 EX-Prototype ID Bank 1 | . . . 1 . . Fabricator Hacks . | . . . . . . Repair Station Hacks 4 | . 4 . . . . Scan Component 2 | . 2 . . . . Repair 2 | . 2 . . . . Recycling Unit Hacks 1 | . 1 . . . . Retrieve Components 1 | . 1 . . . . Scanalyzer . | . . . . . . Garrison Access Hacks . | . . . . . . Unauthorized Hacks 5 | . 3 . . . 2 Terminals 4 | . 2 . . . 2 Botnet 4 | . 2 . . . 2 Fabricators . | . . . . . . Repair Stations . | . . . . . . Recycling Units 1 | . 1 . . . . Reject 1 | . 1 . . . . Scanalyzers . | . . . . . . Garrison Access . | . . . . . . Data Cores Recovered . | . . . . . . Used . | . . . . . . Hacking Detections 13 | . 8 . . . 5 Full Trace Events . | . . . . . . Feedback Events . | . . . . . . Feedback Blocked . | . . . . . . Robot Schematics Acquired . | . . . . . . Robots Built . | . . . . . . Authchips . | . . . . . . Time . | . . . . . . Total Robot Build Rating . | . . . . . . Part Schematics Acquired 1 | . 1 . . . . Parts Built . | . . . . . . Authchips . | . . . . . . Time . | . . . . . . Total Part Build Rating . | . . . . . . Parts Repaired 2 | . 2 . . . . Time 58 | . 58 . . . . Parts Recycled . | . . . . . . Recycled Matter . | . . . . . . Retrieved Matter . | . . . . . . Retrieved Components 8 | . 8 . . . . Parts Scanalyzed . | . . . . . . Part Schematics Acquired . | . . . . . . Parts Damaged . | . . . . . . Bothacking | -11 -10 -10 -10 -9 -8 ------------ Run | Jun Mat Min Exi Min Mat Used RIF Installer . | . . . . . . Robots Hacked . | . . . . . . Non-combat . | . . . . . . Combat . | . . . . . . Robot Hacks Applied . | . . . . . . Relay Couplers Released . | . . . . . . Fabnet Peak Effective % . | . . . . . . Robots Rewired . | . . . . . . Allies Hacked . | . . . . . . Hacks Repelled . | . . . . . . Allies | -11 -10 -10 -10 -9 -8 -------- Run | Jun Mat Min Exi Min Mat Total Allies . | . . . . . . Largest Group . | . . . . . . Highest-Rated Group . | . . . . . . Highest-Rated Ally . | . . . . . . Total Orders . | . . . . . . Ally Attacks . | . . . . . . Total Damage . | . . . . . . Kills . | . . . . . . Allies Corrupted . | . . . . . . Allies Melted . | . . . . . . Intel | -11 -10 -10 -10 -9 -8 ------- Run | Jun Mat Min Exi Min Mat Robot Analysis Total . | . . . . . . Derelict Logs Recovered 3 | . . 2 . 1 . Drone Launches . | . . . . . . Drone Recoveries . | . . . . . . Exploration | -11 -10 -10 -10 -9 -8 ------------- Run | Jun Mat Min Exi Min Mat Turns Passed 3480 | 1 1200 260 472 1073 474 Spaces Moved 2369 | 1 660 216 388 627 477 Core 7 | . . . . . 7 Treads . | . . . . . . Legs 1812 | 1 529 216 388 627 51 Wheels . | . . . . . . Hover 550 | . 131 . . . 419 Flight . | . . . . . . Fastest Speed 56 | 120 56 120 120 120 62 Average Speed 116 | 120 107 120 120 156 73 Slowest Speed 260 | 120 120 120 120 190 260 Overloaded Moves . | . . . . . . Propulsion Burnouts . | . . . . . . Robots Hopped . | . . . . . . Cave-ins Triggered . | . . . . . . Exploration Rate (%) 66 | 2 96 47 89 98 65 Regions Visited 5 Branch Regions 3 Pre-discovered Areas . | . . . . . . Known Exits Taken 1 | . . 1 . . . Unknown Exits Taken 4 | 1 1 . 1 1 . Scrap Searched 5 | . . 3 . 2 . Spaces Dug 23 | . 20 . . . 3 Terrain Destroyed 187 | . 20 . . 85 82 Melee . | . . . . . . Projectile 24 | . 20 . . . 4 AOE 163 | . . . . 85 78 Terrain Rammed . | . . . . . . Walls Destroyed . | . . . . . . Machines Disabled . | . . . . . . Actions | -11 -10 -10 -10 -9 -8 --------- Run | Jun Mat Min Exi Min Mat Total 2849 | 2 959 217 397 710 564 Wait 252 | . 162 2 2 61 25 Move 2364 | . 659 215 387 626 477 Hop . | . . . . . . Pick Up 33 | . 15 . 3 2 13 Fast Attach 2 | . 2 . . . . Attach 16 | . 4 . . . 12 Detach . | . . . . . . Swap 25 | . 16 . 1 5 3 Drop 25 | 2 12 . 4 4 3 Fire 128 | . 89 . . 12 27 Melee . | . . . . . . Ram 4 | . . . . . 4 Kick . | . . . . . . Crush . | . . . . . . Escape Stasis . | . . . . . . Rewire . | . . . . . . Trap . | . . . . . . Miscellaneous . | . . . . . . Route ------- -11/Junkyard -10/Materials (discovered 5 exits: [*Mat x3] / [*Min x2]) -10/Mines (discovered 3 exits: [*Mat x2] / *Exi) -10/Exiles -9/Mines (discovered 2 exits: *Mat x2) -8/Materials (discovered 2 exits: [*Fac] / [*Sto]) History --------- Turn | Location | Event 2 | -11/Junkyard | Discovered new exit (range 0) 2 | -11/Junkyard | Entered Materials 313 | -10/Materials | Build established: Mutant 328 | -10/Materials | Repaired Imp. Hover Unit 355 | -10/Materials | Repaired Assault Rifle 406 | -10/Materials | Discovered new exit (range 14) 499 | -10/Materials | Discovered new exit (range 16) 612 | -10/Materials | Discovered new exit (range 8) 806 | -10/Materials | Discovered new exit (range 11) 944 | -10/Materials | Discovered new exit (range 16) 964 | -10/Materials | Core integrity fell below 50% 1202 | -10/Materials | Entered Mines 1212 | -10/Mines | Met a Derelict bent on vengeance 1268 | -10/Mines | Discovered new exit (range 6) 1298 | -10/Mines | Discovered new exit (range 10) 1299 | -10/Mines | Identified exit to Exiles 1302 | -10/Mines | Learned Materials terminal intel 1376 | -10/Mines | A weapon hastily lodged in a ceiling crevice suddenly fell to the ground 1410 | -10/Mines | Deemed a non-threat by the Exiles lab entrance 1430 | -10/Mines | Assembled infested the area 1435 | -10/Mines | Assisted by a Guerilla fighting off Assembled 1462 | -10/Mines | Entered Exiles 1491 | -10/Exiles | Met 8R-AWN 1513 | -10/Exiles | Met EX-HEX 1592 | -10/Exiles | Met EX-DEC 1615 | -10/Exiles | Visited The Gauntlet 1746 | -10/Exiles | Met EX-BIN 1768 | -10/Exiles | Aligned with FarCom system 1769 | -10/Exiles | Given EX-Vault access code 1800 | -10/Exiles | Opened EX-Vault 1809 | -10/Exiles | Found Lightpack 2.0 1836 | -10/Exiles | Warned to stay clear of 0b10 Research branches 1920 | -10/Exiles | Discovered new exit (range 14) 1934 | -10/Exiles | Left Exiles lab with Lightpack 2.0 1934 | -10/Exiles | Entered Mines 1993 | -9/Mines | Found a hidden stash of uninstalled traps 2507 | -9/Mines | Learned location of 1 exit from Proximity Caves 2533 | -9/Mines | Discovered new exit (range 13) 2664 | -9/Mines | Received a Rocket Launcher from a helpful Derelict 2739 | -9/Mines | Discovered new exit (range 15) 3007 | -9/Mines | Entered Materials 3007 | -8/Materials | Evolved 4 slots: Propulsion x2, Utility x2 3008 | -8/Materials | Loaded intel: 12 terminal locations 3192 | -8/Materials | Lost 3 parts (1p1n1w) 3290 | -8/Materials | Discovered new exit (range 16) 3301 | -8/Materials | Discovered new exit (range 15) 3343 | -8/Materials | Build established: Hauler-Scout 3411 | -8/Materials | Core integrity fell below 50% 3474 | -8/Materials | Core integrity fell below 20% 3481 | -8/Materials | Destroyed by G-47 Trooper with Particle Gun Last Messages --------------- 03414_ O-16 Technician locks terminal. 03433_ E0CBJ89//PEFQ9L2GOBOGC 03439_ Aluminum Leg destroyed. 03441_ G-47 Trooper destroyed. 03441_ B-36 Bruiser destroyed. 03443_ Critical hit (Burn: +37). 03458_ Rocket Launcher destroyed. 03461_ Aluminum Leg destroyed. 03463_ L-31 Rogue destroyed. 03463_ Rocket Launcher destroyed. 03468_ Acquired Imp. Aluminum Leg. 03468_ K-01 Serf collects debris. 03470_ Acquired 25 matter. 03471_ Nuclear Core destroyed. 03472_ K-01 Serf collects debris. 03472_ Acquired Imp. Aluminum Leg. 03473_ Imp. Terrain Scanner destroyed. 03473_ Critical hit (Burn: +37). 03475_ Imp. Aluminum Leg destroyed. 03477_ K-01 Serf collects debris. Map ----- +----------------------------------------------------+ | ?? #??????########????? | | ?????????## ########### ######## #????? | | ??????????# """ #?????##??# #] # #????# | | ####??????# """ ##?????#??# # """ # ""#????? | | #??????# """ #?????????# # """ # Y"#????? | | #??????# ########### # """ # ""#????? | | #""????+ # + # # ????#?? | | #"T????# # # #?? ###+###???### | | #""????# # # #####+## #????# | | #??????#! # # ###### | | #??????# "T" # / | | #??????# # # ###### | | #??????# + # ####+## #????# | | #??????# #### !# #?????########???# | | ######## #??# # #?????# """ #??## | | #??########## #?#???# """ #??# | | #############???????????# #?????# """ #??## | | #???????????????????????# #?????# #???# | | #???????????????????????# #?????# ###### | | #???????#???????????????+ #?????? ?## | | ??????????????????????# g #???????#+ # ## | | !?????????Y?????#+#?## ##??????# / | | !#?????????????## ### g #?????? # | | !#?????????????# ####### ##### | | !#?????????????+ Y % | | !##?????????????# @ ##Y | | ####??????????????# ## ## g | | #?????????????????# ### g r ## % = | | #????????#????????# ?# bYY ## # = =! | | #?????????????????+ ?# ## # # ! | | #?????????????????# ??# # #??"" #? | | ??????????????????# ??# !/ ## #???? #? | | | ??????????????????#???# ## #?????#?? ## | | ??????????????????????# ##g+?????????#? | | ??????????????????????# ## #??????????? | | #?????????????????????# #? ???????????? | | #?????????????????????### ###? ???????????? | | #???????????????????????# #??? ???????????? | | /???????????????????????#######??? ???????????? | | #????????????????????????????????? ???????????? | | #?????????????????????????????????#???????????? | | #?????????????????????????????????????????????? | | ###########? ?????????????????????????????????? | | # #???????????????????????????????????? | | # "" #? ?????????????????????????????????? | | + G" #???????????????????????????????????? | | # """ "" #?#?????????????????????????????????? | | # """ #???????????????????????????????????? | | # """ #???????????????????????????????????? | | # #???????????????????????????????????? | +----------------------------------------------------+ Best States ------------- Heat Dissipation 45 Energy Generation 14 Energy Capacity 250 Matter Stores 300 Matter Capacity 300 Sight Range 16 Terrain Scan Range 16 Terrain Scan Density 10 Evasion (%) 55 Item Schematics ----------------- Sensor Array | -10/Materials | Hacked Robot Schematics ------------------ None Fabricated ------------ Nothing Alien Tech Used ----------------- None Achievements -------------- None Challenges ------------ None Game ------ Seed AntigravSniperPit Manual? 0 Play Time 00:48:47 Cumulative 144.4 hours Start 2023.06.06 @ 03:42:02 End 2023.06.06 @ 04:33:02 Sessions 1 Manual Loads 0 Difficulty Rogue Special Mode None Game No. 26 Rogue 24 Adventurer 0 Explorer 2 Win Type - Total 3 Types 0/0/0/3/0/0/0/0/0 Lore% 33 Gallery% 47 Achievement% 48 Wizard Run 0 Options --------- ASCII 1 Keyboard 0 Movement Mouse Keybinds 0 Fullscreen 1 Font 18/SmallcapsGlow Map View 70x50 Tactical HUD 1 Map Filters NONE Filters NONE Steam X RUN: bff099bc-319a-47b0-83d6-5a28702b711f